[Event "44th Chess Olympiad Open 2022"]
[Site "Chennai"]
[Date "2022.08.09"]
[Round "11.52"]
[White "Kwong, Wing Ki"]
[Black "Abugenda, Nagi"]
[Result "1/2-1/2"]
[ECO "E11"]
[WhiteElo "1824"]
[BlackElo "1991"]
[Annotator "TA"]
[PlyCount "169"]
[EventDate "2022.07.29"]
[EventType "team-tourn"]
[EventCountry "IND"]
[SourceTitle "playchess.com"]
[Source "ChessBase"]
[SourceQuality "1"]
[WhiteTeam "Hong Kong"]
[BlackTeam "Libya"]
[WhiteTeamCountry "HKG"]
[BlackTeamCountry "LBY"]
[TimeControl "40/5400+30:1800+30"]

{[%evp 21,169,36,59,2,60,43,38,22,54,8,25,31,41,7,14,0,35,10,23,0,0,0,31,0,5,-2,14,17,19,4,33,0,18,0,14,-2,0,0,0,0,8,5,12,-4,19,0,51,0,86,17,123,119,123,121,177,167,176,125,146,111,131,0,0,0,0,0,0,-8,-8,-8,-2,-3,0,-29,-29,-29,-29,-36,-36,-137,-137,-122,-8,-64,-64,-140,-8,-8,-8,-8,-8,-8,-8,-8,-8,-8,-8,-8,-8,-8,0,-8,0,-12789,-2499,-12841,-12813,-11550,-11038,-9438,-7997,-7922,-8,-8,0,-7539,-6621,-6467,0,-8,-8,-8,-8,-8,0,-868,-8,-8,-8,-8,-8,-8,-8,-8,-8,-8,-8,-8,-8,-8,-8,-8,0,0,0,0,0,0,0,-8]} 1. d4 {[%emt 0:00:08]} Nf6 {[%emt 0:00:16]} 2. c4 {[%emt 0:00:20]} e6 {[%emt 0:00:12]} 3. Nf3 {[%emt 0:00:35]} b6 {[%emt 0:00:50]} 4. g3 {[%emt 0:00:16]} Bb7 {[%emt 0:00:10]} 5. Bg2 {[%emt 0:00:20]} Bb4+ {[%emt 0:00:08]} 6. Nbd2 {[%emt 0:01:25]} O-O {[%emt 0:02:27]} 7. a3 {[%emt 0:00:59]} Bxd2+ {[%emt 0:01:38]} 8. Qxd2 {[%emt 0:03:19]} d6 {[%emt 0:05:11]} 9. O-O {[%emt 0:02:57]} Nbd7 {[%emt 0:00:39]} 10. b4 {[%emt 0:02:59]} c5 {[%emt 0:04:09]} 11. Bb2 {[%emt 0:04:08]} Rc8 {[%emt 0:01:46]} 12. Rfd1 {[%emt 0:04:28] E11: Bogo-Indian.} (12. dxc5 $14 dxc5 13. b5) 12... Qc7 {[%emt 0:01:56]} (12... cxb4 $11 13. axb4 Rxc4) 13. Rac1 {[%emt 0:01:22]} Rfd8 {[%emt 0:01:21] [#]} 14. h3 $146 {[%emt 0:07:36] White is slightly better.} ({Predecessor:} 14. dxc5 dxc5 15. Qg5 h6 16. Qe3 Ne8 17. b5 Qb8 18. Bh3 Nf8 19. Bg2 Qa8 20. a4 Rxd1+ 21. Rxd1 {½-½ (40) Wacior,M (1703)-Zaleski,L (1791) Walbrzych 2013}) 14... Qb8 {[%emt 0:03:08]} 15. Ba1 {[%emt 0:02:26]} (15. dxc5 $14 {was preferrable.} dxc5 16. Qd6) 15... a6 {[%emt 0:13:49]} 16. dxc5 {[%emt 0:01:49]} dxc5 {[%emt 0:08:06]} 17. Qb2 {[%emt 0:03:07]} Qc7 {[%emt 0:02:41]} 18. Rd2 {[%emt 0:02:51]} Nf8 {[%emt 0:03:12]} 19. Rxd8 {[%emt 0:06:01]} Rxd8 {[%emt 0:01:01]} 20. Ne5 {[%emt 0:00:34] aiming for bxc5.} Bxg2 {[%emt 0:02:33]} 21. Kxg2 {[%emt 0:00:11]} Ng6 {[%emt 0:03:22]} 22. Ng4 {[%emt 0:02:57]} Ne8 {[%emt 0:02:51]} 23. Kg1 {[%emt 0:02:28]} Qd6 {[%emt 0:02:57]} 24. Ne3 {[%emt 0:01:46]} Qc6 {[%emt 0:01:46]} 25. Qc2 {[%emt 0:01:38]} Rd6 {[%emt 0:03:17]} 26. Rd1 {[%emt 0:04:54]} f6 {[%emt 0:10:17]} 27. Rd3 {[%emt 0:06:23]} Kf7 {[%emt 0:03:11]} 28. Qd2 {[%emt 0:00:35]} Rxd3 {[%emt 0:01:47]} 29. Qxd3 {[%emt 0:00:28]} Qd6 {[%emt 0:03:32]} 30. Bc3 {[%emt 0:02:13]} Qxd3 {[%emt 0:05:01]} 31. exd3 $11 {[%emt 0:00:10][%cal Be2d3,Bd3d4][%mdl 4128] Endgame KBN-KNN} Ke7 {[%emt 0:01:25]} 32. d4 {[%emt 0:02:19]} Kd6 {[%emt 0:01:06]} 33. f4 {[%emt 0:02:12]} f5 {[%emt 0:02:25]} (33... cxb4 $11 34. Bxb4+ Kd7) 34. Kg2 {[%emt 0:02:12]} (34. dxc5+ $14 bxc5 35. b5) 34... Nf6 {[%emt 0:00:37]} (34... cxb4 $11 {remains equal.} 35. Bxb4+ Kd7) 35. Kf3 {[%emt 0:03:06]} (35. dxc5+ $16 bxc5 36. b5) 35... Ne4 {[%emt 0:01:08]} (35... cxb4 $11 {keeps the balance.} 36. Bxb4+ Kd7) 36. dxc5+ $16 {[%emt 0:01:14]} bxc5 {[%emt 0:00:16]} 37. Bxg7 {[%emt 0:00:22]} h5 {[%emt 0:03:44]} (37... Nd2+ $16 38. Ke2 Ne4) 38. Nf1 {[%emt 0:04:33]} Kc6 {[%emt 0:04:26]} 39. Bb2 {[%emt 0:01:12]} ({Better is} 39. Ke3 $1 $18) 39... Nf8 {[%emt 0:00:52]} 40. Ke3 {[%emt 0:08:54]} Nd7 {[%emt 0:00:29]} 41. g4 {[%emt 0:33:17]} (41. Kd3 $16) 41... Nd6 $11 {[%emt 0:30:34]} 42. Nd2 {[%emt 0:07:43]} fxg4 {[%emt 0:00:00]} 43. hxg4 {[%emt 0:00:00]} hxg4 {[%emt 0:00:00]} 44. Be5 {[%emt 0:00:00]} Nf5+ {[%emt 0:00:00]} 45. Kf2 {[%emt 0:00:00]} Nb6 {[%emt 0:00:00]} 46. Bc3 {[%emt 0:00:00]} Na4 {[%emt 0:00:00]} 47. Ne4 {[%emt 0:00:00]} Nxc3 {[%emt 0:00:00]} 48. Nxc3 {[%emt 0:00:00] KN-KN} Nd6 {[%emt 0:00:00]} 49. Kg3 {[%emt 0:00:00]} Nxc4 {[%emt 0:00:00]} 50. Kxg4 {[%emt 0:01:25]} (50. Ne4 $15) 50... Nxa3 $17 {[%emt 0:00:00]} 51. bxc5 {[%emt 0:00:15]} Kxc5 {[%emt 0:00:00]} (51... Nb5 $1 $17 {[%cal Rb5c3]} 52. Na4 Nd4) 52. Kg5 {[%emt 0:02:25]} ({White must play} 52. f5 $1 $11) 52... Nb5 $1 $15 {[%emt 0:00:00]} 53. Na4+ {[%emt 0:02:55]} Kd6 {[%emt 0:00:00]} (53... Kb4 $1 $17 {[%cal Rb4a4]} 54. Nb2 a5) 54. f5 $11 {[%emt 0:00:49]} exf5 {[%emt 0:00:00]} 55. Kxf5 {[%emt 0:00:07]} Kd5 {[%emt 0:00:00]} 56. Kf4 {[%emt 0:00:51]} Kd4 {[%emt 0:00:00]} 57. Kf3 $1 {[%emt 0:00:28]} a5 {[%emt 0:00:00]} 58. Nb6 $1 {[%emt 0:00:37]} Nc3 {[%emt 0:00:32]} 59. Kf2 {[%emt 0:00:36]} Kc5 {[%emt 0:00:50]} 60. Nd7+ {[%emt 0:00:14]} Kd4 {[%emt 0:02:49]} 61. Nb6 {[%emt 0:00:42]} Nd5 {[%emt 0:01:16]} 62. Na4 $2 {[%emt 0:00:24][%mdl 8192]} (62. Nxd5 $11 Kxd5 63. Ke3) 62... Kc4 $1 $19 {[%emt 0:00:51] ( -> ...Kb4)} 63. Ke1 {[%emt 0:00:51]} Kb4 {[%emt 0:00:59]} 64. Nb2 {[%emt 0:00:08]} Kb3 $1 {[%emt 0:00:27]} 65. Nd3 {[%emt 0:00:15]} Kc2 $1 {[%emt 0:00:47]} 66. Nc5 {[%emt 0:00:13]} Nf4 $2 {[%emt 0:00:41]} (66... Nc3 $1 $19 67. Kf1 Ne4 $1 {[%mdl 512]}) 67. Na4 $1 $11 {[%emt 0:00:26]} Nd5 $2 {[%emt 0:01:04][%mdl 8192]} (67... Ne6 $11 68. Ke2 Kb3) 68. Nc5 $19 {[%emt 0:01:18]} Nc3 $1 {[%emt 0:01:08]} 69. Kf1 {[%emt 0:00:28] [#]} Nd5 $2 {[%emt 0:01:11]} (69... Ne4 $1 $19 {[%cal Re4c5][%mdl 512]} 70. Na4 Nf6) 70. Ke1 $11 {[%emt 0:00:20]} Nb4 {[%emt 0:00:15]} 71. Ke2 {[%emt 0:00:36]} Na2 {[%emt 0:00:56]} 72. Ke1 {[%emt 0:01:09]} Nc3 $2 {[%emt 0:00:41][%mdl 8192]} (72... Nc1 $11) 73. Kf1 $1 $19 {[%emt 0:00:00] [#]} Kb2 $2 {[%emt 0:00:13]} (73... Ne4 $1 $19 {[%cal Re4c5][%mdl 512]} 74. Na4 Nf6) 74. Ke1 $11 {[%emt 0:00:05] The position is equal.} Ka3 {[%emt 0:00:18]} 75. Kd2 {[%emt 0:00:32]} Kb4 {[%emt 0:01:30]} 76. Nd3+ {[%emt 0:00:29]} Kb3 {[%emt 0:00:46]} 77. Nc1+ $1 {[%emt 0:00:34]} Kc4 {[%emt 0:00:24]} 78. Kc2 $1 {[%emt 0:00:24]} a4 {[%emt 0:00:07]} 79. Kb2 {[%emt 0:00:25]} Nb5 {[%emt 0:00:22]} 80. Ka1 {[%emt 0:01:15]} a3 {[%emt 0:00:16]} 81. Ka2 {[%emt 0:00:32]} Kb4 {[%emt 0:00:29]} 82. Nd3+ {[%emt 0:00:14]} Kc3 {[%emt 0:00:52]} 83. Nc5 {[%emt 0:00:37]} Kc4 {[%emt 0:00:30]} 84. Na6 {[%emt 0:00:28]} Kc3 {[%emt 0:00:34]} 85. Nc7 {[%emt 0:00:22] Never resign too early!  Weighted Error Value: White=0.25 (precise) /Black=0.28 (precise)} 1/2-1/2

[Event "44th Chess Olympiad Open 2022"]
[Site "Chennai"]
[Date "2022.08.09"]
[Round "11.53"]
[White "Saraci, Nderim"]
[Black "Yan, Austin K"]
[Result "1-0"]
[ECO "D02"]
[WhiteElo "2495"]
[BlackElo "1568"]
[Annotator "RC"]
[PlyCount "37"]
[EventDate "2022.07.29"]
[EventType "team-tourn"]
[EventCountry "IND"]
[SourceTitle "playchess.com"]
[Source "ChessBase"]
[SourceQuality "1"]
[WhiteTeam "Kosovo"]
[BlackTeam "United States"]
[WhiteTeamCountry "KOS"]
[BlackTeamCountry "USA"]
[TimeControl "40/5400+30:1800+30"]

1. d4 {[%emt 0:00:04]} d5 {[%emt 0:00:07]} 2. Nf3 {[%emt 0:00:08]} Nf6 {[%emt 0:00:10]} 3. Bf4 {[%emt 0:01:02]} c5 {[%emt 0:00:58]} 4. e3 {[%emt 0:00:11]} Nc6 {[%emt 0:00:32]} 5. Nbd2 {[%emt 0:00:18]} Qb6 {[%emt 0:05:28]} 6. dxc5 {[%emt 0:00:24]} Qxb2 {[%emt 0:02:30]} 7. Rb1 {[%emt 0:00:08]} Qc3 {[%emt 0:00:40]} 8. Bb5 {[%emt 0:00:09]} g6 {[%emt 0:03:51]} 9. e4 {[%emt 0:39:09]} dxe4 {[%emt 0:17:39]} 10. Be5 {[%emt 0:01:58]} Qa5 {[%emt 0:00:31]} 11. O-O {[%emt 0:07:14]} Bg7 {[%emt 0:26:26]} 12. Nc4 {[%emt 0:10:47]} Qxa2 {[%emt 0:08:50]} 13. Ra1 {[%emt 0:13:35]} Qxa1 {[%emt 0:01:03]} 14. Qxa1 {[%emt 0:00:15]} exf3 {[%emt 0:00:47]} 15. Nb6 {[%emt 0:00:15]} axb6 {[%emt 0:04:08]} 16. Qxa8 {[%emt 0:00:24]} O-O {[%emt 0:00:17]} 17. Bxc6 {[%emt 0:00:44]} bxc6 {[%emt 0:08:08]} 18. cxb6 {[%emt 0:02:02]} fxg2 {[%emt 0:01:33]} 19. Rd1 {[%emt 0:03:59]} 1-0

[Event "44th Chess Olympiad Open 2022"]
[Site "Chennai"]
[Date "2022.08.09"]
[Round "11.53"]
[White "Makolli, Perparim"]
[Black "Hsu, Hsuan-Ming"]
[Result "1/2-1/2"]
[ECO "C96"]
[WhiteElo "2247"]
[BlackElo "1900"]
[Annotator "RC"]
[PlyCount "146"]
[EventDate "2022.07.29"]
[EventType "team-tourn"]
[EventCountry "IND"]
[SourceTitle "playchess.com"]
[Source "ChessBase"]
[SourceQuality "1"]
[WhiteTeam "Kosovo"]
[BlackTeam "Taiwan"]
[WhiteTeamCountry "KOS"]
[BlackTeamCountry "TPE"]
[TimeControl "40/5400+30:1800+30"]

1. e4 {[%emt 0:00:32]} e5 {[%emt 0:00:07]} 2. Nf3 {[%emt 0:00:14]} Nc6 {[%emt 0:00:05]} 3. Bb5 {[%emt 0:00:24]} a6 {[%emt 0:00:09]} 4. Ba4 {[%emt 0:00:04]} Nf6 {[%emt 0:00:06]} 5. d3 {[%emt 0:02:51]} b5 {[%emt 0:00:07]} 6. Bb3 {[%emt 0:00:04]} Be7 {[%emt 0:01:01]} 7. O-O {[%emt 0:01:04]} O-O {[%emt 0:00:36]} 8. c3 {[%emt 0:02:01]} d6 {[%emt 0:04:05]} 9. h3 {[%emt 0:01:13]} Na5 {[%emt 0:00:50]} 10. Bc2 {[%emt 0:03:22]} c5 11. Re1 {[%emt 0:07:27]} Nc6 {[%emt 0:01:59]} 12. d4 {[%emt 0:00:00]} exd4 {[%emt 0:21:29]} 13. cxd4 {[%emt 0:00:00]} Nb4 {[%emt 0:05:43]} 14. Nc3 {[%emt 0:00:00]} Nxc2 {[%emt 0:00:17]} 15. Qxc2 {[%emt 0:00:00]} Bb7 {[%emt 0:10:28]} 16. d5 {[%emt 0:01:24]} Re8 {[%emt 0:03:10]} 17. a4 {[%emt 0:06:23]} b4 {[%emt 0:04:09]} 18. Nb1 {[%emt 0:03:34]} a5 {[%emt 0:02:25]} 19. Nbd2 {[%emt 0:00:53]} Nd7 {[%emt 0:00:06]} 20. b3 {[%emt 0:02:37]} Bf6 {[%emt 0:01:02]} 21. Bb2 {[%emt 0:01:10]} Ba6 {[%emt 0:05:06]} 22. Bxf6 {[%emt 0:08:33]} Qxf6 {[%emt 0:02:33]} 23. Nc4 {[%emt 0:00:35]} Bxc4 {[%emt 0:04:01]} 24. Qxc4 {[%emt 0:00:08]} Ne5 {[%emt 0:00:26]} 25. Nxe5 {[%emt 0:00:09]} Qxe5 {[%emt 0:01:08]} 26. Ra2 {[%emt 0:00:31]} f6 {[%emt 0:12:37]} 27. Rae2 {[%emt 0:00:19]} Reb8 {[%emt 0:06:40]} 28. Re3 {[%emt 0:00:53]} Rc8 {[%emt 0:03:52]} 29. Rd3 {[%emt 0:00:40]} Re8 {[%emt 0:00:50]} 30. Rde3 {[%emt 0:00:36]} Rec8 {[%emt 0:00:20]} 31. Rd1 {[%emt 0:00:13]} Re8 {[%emt 0:00:33]} 32. g3 {[%emt 0:00:10]} Qh5 {[%emt 0:00:43]} 33. Qf1 {[%emt 0:00:13]} Qf7 {[%emt 0:08:35]} 34. f4 {[%emt 0:00:46]} Qa7 {[%emt 0:00:02]} 35. Kf2 {[%emt 0:00:46]} Qa6 {[%emt 0:00:19]} 36. Qxa6 {[%emt 0:00:31]} Rxa6 {[%emt 0:00:04]} 37. Ke2 {[%emt 0:00:12]} Kf7 {[%emt 0:01:43]} 38. Kd3 {[%emt 0:00:05]} Raa8 {[%emt 0:00:51]} 39. Kc4 {[%emt 0:00:23]} Ke7 {[%emt 0:00:04]} 40. e5 {[%emt 0:04:51]} fxe5 {[%emt 0:00:31]} 41. fxe5 {[%emt 0:30:07]} dxe5 {[%emt 0:30:57]} 42. d6+ {[%emt 0:01:00]} Kd7 {[%emt 0:02:21]} 43. Rd5 {[%emt 0:00:00]} e4 {[%emt 0:00:00]} 44. Kxc5 {[%emt 0:00:00]} Rac8+ {[%emt 0:00:00]} 45. Kd4 {[%emt 0:00:00]} Rc6 {[%emt 0:00:00]} 46. Rxa5 {[%emt 0:00:00]} Rxd6+ {[%emt 0:00:00]} 47. Rd5 {[%emt 0:00:00]} Rc8 {[%emt 0:00:00]} 48. Rxd6+ {[%emt 0:00:00]} Kxd6 {[%emt 0:00:00]} 49. Kxe4 {[%emt 0:00:00]} Kc5 {[%emt 0:00:00]} 50. Kd3 {[%emt 0:00:00]} Kd5 {[%emt 0:00:00]} 51. Kd2 {[%emt 0:00:00]} g5 {[%emt 0:00:00]} 52. a5 {[%emt 0:00:00]} Ra8 {[%emt 0:00:00]} 53. Kd3 {[%emt 0:00:00]} Rxa5 {[%emt 0:00:31]} 54. Re4 {[%emt 0:00:00]} Rb5 {[%emt 0:00:35]} 55. Rg4 {[%emt 0:00:00]} Kd6 {[%emt 0:03:12]} 56. Kc4 {[%emt 0:00:00]} Kc6 {[%emt 0:00:36]} 57. h4 {[%emt 0:00:00]} gxh4 {[%emt 0:00:59]} 58. gxh4 {[%emt 0:00:00]} Rf5 {[%emt 0:00:41]} 59. Kxb4 {[%emt 0:00:00]} h5 {[%emt 0:00:38]} 60. Rd4 {[%emt 0:00:00]} Rf3 {[%emt 0:00:19]} 61. Rc4+ {[%emt 0:00:00]} Kb6 {[%emt 0:00:10]} 62. Re4 {[%emt 0:00:00]} Rg3 {[%emt 0:00:40]} 63. Kc4 {[%emt 0:00:00]} Rh3 {[%emt 0:00:12]} 64. b4 {[%emt 0:00:00]} Rh1 {[%emt 0:00:17]} 65. Rf4 {[%emt 0:00:00]} Re1 {[%emt 0:01:01]} 66. Rf6+ {[%emt 0:00:00]} Kb7 {[%emt 0:00:22]} 67. Rf4 {[%emt 0:00:00]} Kb6 {[%emt 0:00:11]} 68. Kd5 {[%emt 0:00:00]} Kb5 {[%emt 0:00:07]} 69. Re4 {[%emt 0:00:00]} Rxe4 {[%emt 0:00:17]} 70. Kxe4 {[%emt 0:00:00]} Kxb4 {[%emt 0:00:03]} 71. Kf5 {[%emt 0:00:00]} Kc5 {[%emt 0:00:04]} 72. Kg6 {[%emt 0:00:00]} Kd6 {[%emt 0:00:05]} 73. Kxh5 {[%emt 0:00:00]} Ke7 {[%emt 0:00:06]} 1/2-1/2

[Event "44th Chess Olympiad Open 2022"]
[Site "Chennai"]
[Date "2022.08.09"]
[Round "11.53"]
[White "Liu, Yeh Yang"]
[Black "Saraci, Korab"]
[Result "0-1"]
[ECO "B22"]
[WhiteElo "1994"]
[BlackElo "2287"]
[Annotator "RC"]
[PlyCount "80"]
[EventDate "2022.07.29"]
[EventType "team-tourn"]
[EventCountry "IND"]
[SourceTitle "playchess.com"]
[Source "ChessBase"]
[SourceQuality "1"]
[WhiteTeam "Taiwan"]
[BlackTeam "Kosovo"]
[WhiteTeamCountry "TPE"]
[BlackTeamCountry "KOS"]
[TimeControl "40/5400+30:1800+30"]

1. e4 {[%emt 0:00:03]} c5 {[%emt 0:00:06]} 2. Nf3 {[%emt 0:00:03]} d6 {[%emt 0:00:05]} 3. c3 {[%emt 0:00:12]} g6 {[%emt 0:04:27]} 4. d4 {[%emt 0:00:07]} cxd4 {[%emt 0:00:06]} 5. cxd4 {[%emt 0:00:04]} Nf6 {[%emt 0:00:38]} 6. Nc3 {[%emt 0:00:04]} Bg7 {[%emt 0:00:15]} 7. Be2 {[%emt 0:00:15]} O-O {[%emt 0:00:18]} 8. O-O {[%emt 0:00:04]} Nc6 {[%emt 0:02:17]} 9. d5 {[%emt 0:00:21]} Nb8 {[%emt 0:00:59]} 10. Be3 {[%emt 0:02:27]} Nbd7 {[%emt 0:02:30]} 11. Nd4 {[%emt 0:01:48]} Nc5 {[%emt 0:03:22]} 12. f3 {[%emt 0:00:03]} a5 {[%emt 0:04:08]} 13. a3 {[%emt 0:00:37]} a4 {[%emt 0:03:13]} 14. Rc1 {[%emt 0:02:47]} Bd7 {[%emt 0:06:11]} 15. Ncb5 {[%emt 0:03:26]} Ne8 {[%emt 0:03:02]} 16. Rc4 {[%emt 0:11:12]} Ra5 {[%emt 0:09:32]} 17. Rb4 {[%emt 0:03:26]} Na6 {[%emt 0:00:52]} 18. Rxa4 {[%emt 0:01:37]} Bxd4 {[%emt 0:00:24]} 19. Qxd4 {[%emt 0:01:45]} Bxb5 {[%emt 0:03:42]} 20. Bh6 {[%emt 0:01:16]} Nf6 {[%emt 0:01:35]} 21. Rxa5 {[%emt 0:01:17]} Bxe2 {[%emt 0:00:52]} 22. b4 {[%emt 0:00:24]} Re8 {[%emt 0:04:52]} 23. Re1 {[%emt 0:01:51]} b6 {[%emt 0:00:09]} 24. Rxa6 {[%emt 0:03:08]} Bxa6 {[%emt 0:00:07]} 25. Rc1 {[%emt 0:00:02]} Qb8 {[%emt 0:00:57]} 26. Rc6 {[%emt 0:00:19]} Bc8 {[%emt 0:04:22]} 27. Rxb6 {[%emt 0:05:29]} Qa7 {[%emt 0:00:15]} 28. a4 {[%emt 0:00:04]} Qxa4 {[%emt 0:02:27]} 29. Rxd6 {[%emt 0:00:02]} Nh5 {[%emt 0:00:31]} 30. Rb6 {[%emt 0:03:29]} f6 {[%emt 0:14:42]} 31. g4 {[%emt 0:09:38]} Qa2 {[%emt 0:04:28]} 32. Rc6 {[%emt 0:03:07]} g5 {[%emt 0:01:00]} 33. Qd1 {[%emt 0:07:49]} Nf4 {[%emt 0:00:30]} 34. Rc2 {[%emt 0:00:02]} Qb3 {[%emt 0:01:09]} 35. h4 {[%emt 0:03:49]} Ba6 {[%emt 0:00:12]} 36. Rd2 {[%emt 0:00:02]} Qe3+ {[%emt 0:00:10]} 37. Kh2 {[%emt 0:04:36]} Be2 {[%emt 0:00:29]} 38. Qe1 {[%emt 0:00:02]} Rc8 {[%emt 0:02:06]} 39. hxg5 {[%emt 0:00:24]} Rc1 {[%emt 0:00:33]} 40. Rxe2 {[%emt 0:00:16]} Nxe2 {[%emt 0:00:20]} 0-1

[Event "44th Chess Olympiad Open 2022"]
[Site "Chennai"]
[Date "2022.08.09"]
[Round "11.53"]
[White "Wu, Bing-Shen"]
[Black "Asllani, Muhamet"]
[Result "1-0"]
[ECO "D08"]
[WhiteElo "1660"]
[BlackElo "2235"]
[Annotator "RC"]
[PlyCount "63"]
[EventDate "2022.07.29"]
[EventType "team-tourn"]
[EventCountry "IND"]
[SourceTitle "playchess.com"]
[Source "ChessBase"]
[SourceQuality "1"]
[WhiteTeam "Taiwan"]
[BlackTeam "Kosovo"]
[WhiteTeamCountry "TPE"]
[BlackTeamCountry "KOS"]
[TimeControl "40/5400+30:1800+30"]

1. d4 {[%emt 0:00:20]} d5 {[%emt 0:00:05]} 2. c4 {[%emt 0:00:16]} e5 {[%emt 0:00:09]} 3. dxe5 {[%emt 0:05:23]} d4 {[%emt 0:00:10]} 4. Nf3 {[%emt 0:01:34]} Nc6 {[%emt 0:00:49]} 5. a3 {[%emt 0:05:28]} Bg4 {[%emt 0:00:36]} 6. Nbd2 {[%emt 0:03:18]} Nge7 {[%emt 0:00:23]} 7. b4 {[%emt 0:08:08]} Ng6 {[%emt 0:00:25]} 8. Nb3 {[%emt 0:01:17]} Ncxe5 {[%emt 0:03:52]} 9. Qxd4 {[%emt 0:03:33]} Qxd4 {[%emt 0:00:33]} 10. Nfxd4 {[%emt 0:00:22]} Nxc4 {[%emt 0:00:38]} 11. e3 {[%emt 0:02:07]} Nd6 {[%emt 0:00:32]} 12. h3 {[%emt 0:06:33]} Bc8 {[%emt 0:05:19]} 13. Bb2 {[%emt 0:00:43]} Be7 {[%emt 0:00:13]} 14. Rc1 {[%emt 0:01:06]} c6 {[%emt 0:00:09]} 15. Be2 {[%emt 0:03:01]} O-O {[%emt 0:01:32]} 16. O-O {[%emt 0:00:14]} f5 {[%emt 0:06:55]} 17. Nc5 {[%emt 0:04:03]} Bf6 {[%emt 0:00:47]} 18. Rc2 {[%emt 0:01:11]} Re8 {[%emt 0:03:08]} 19. Rd1 {[%emt 0:07:05]} f4 {[%emt 0:00:56]} 20. exf4 {[%emt 0:04:16]} Nxf4 {[%emt 0:00:30]} 21. Bf3 {[%emt 0:01:31]} a5 {[%emt 0:03:46]} 22. Nxc6 {[%emt 0:10:19]} Bf5 {[%emt 0:04:56]} 23. Bxf6 {[%emt 0:07:36]} Bxc2 {[%emt 0:05:21]} 24. Rxd6 {[%emt 0:00:17]} bxc6 {[%emt 0:00:36]} 25. Bg5 {[%emt 0:02:11]} axb4 {[%emt 0:01:50]} 26. axb4 {[%emt 0:01:01]} Nd5 {[%emt 0:11:05]} 27. b5 {[%emt 0:00:36]} Nb4 {[%emt 0:19:44]} 28. bxc6 {[%emt 0:06:03]} Ra5 {[%emt 0:01:01]} 29. Bd2 {[%emt 0:02:41]} Ra1+ {[%emt 0:06:50]} 30. Kh2 {[%emt 0:00:11]} Na6 {[%emt 0:00:17]} 31. Bd5+ {[%emt 0:01:36]} Kf8 {[%emt 0:08:48]} 32. Nd7+ {[%emt 0:00:21]} 1-0

[Event "44th Chess Olympiad Open 2022"]
[Site "Chennai"]
[Date "2022.08.09"]
[Round "11.54"]
[White "Ortega Amarelle, Mariano"]
[Black "Kaloust, Giorgio"]
[Result "1-0"]
[ECO "E40"]
[WhiteElo "2463"]
[BlackElo "1942"]
[Annotator "RC"]
[PlyCount "55"]
[EventDate "2022.07.29"]
[EventType "team-tourn"]
[EventCountry "IND"]
[SourceTitle "playchess.com"]
[Source "ChessBase"]
[SourceQuality "1"]
[WhiteTeam "CPV"]
[BlackTeam "Lebanon"]
[BlackTeamCountry "LBN"]
[TimeControl "40/5400+30:1800+30"]

1. d4 {[%emt 0:00:05]} Nf6 {[%emt 0:00:08]} 2. c4 {[%emt 0:00:32]} e6 {[%emt 0:00:07]} 3. Nc3 {[%emt 0:00:18]} Bb4 {[%emt 0:00:14]} 4. e3 {[%emt 0:00:11]} O-O {[%emt 0:00:50]} 5. Bd3 {[%emt 0:00:12]} Bxc3+ {[%emt 0:01:26]} 6. bxc3 {[%emt 0:00:07]} d6 {[%emt 0:01:40]} 7. Ne2 {[%emt 0:01:47]} Qe7 {[%emt 0:00:44]} 8. e4 {[%emt 0:00:52]} h6 {[%emt 0:03:43]} 9. O-O {[%emt 0:11:55]} Nc6 {[%emt 0:03:25]} 10. f4 {[%emt 0:19:36]} e5 {[%emt 0:05:21]} 11. Ba3 {[%emt 0:07:38]} exd4 {[%emt 0:08:48]} 12. e5 {[%emt 0:02:53]} Ng4 {[%emt 0:03:57]} 13. cxd4 {[%emt 0:05:13]} Qh4 {[%emt 0:06:31]} 14. h3 {[%emt 0:00:45]} Ne3 {[%emt 0:00:20]} 15. Qe1 {[%emt 0:27:54]} Nxg2 {[%emt 0:16:33]} 16. Qxh4 {[%emt 0:03:17]} Nxh4 {[%emt 0:00:09]} 17. d5 {[%emt 0:00:32]} Ne7 {[%emt 0:05:07]} 18. exd6 {[%emt 0:13:03]} cxd6 {[%emt 0:00:03]} 19. Bxd6 {[%emt 0:00:04]} Re8 {[%emt 0:00:19]} 20. Bxe7 {[%emt 0:02:49]} Rxe7 {[%emt 0:00:09]} 21. f5 {[%emt 0:00:27]} Bxf5 {[%emt 0:09:42]} 22. d6 {[%emt 0:00:06]} Bxd3 {[%emt 0:00:23]} 23. dxe7 {[%emt 0:00:05]} Bxe2 {[%emt 0:01:35]} 24. Rad1 {[%emt 0:01:22]} Re8 {[%emt 0:12:22]} 25. Rd8 {[%emt 0:00:06]} f6 {[%emt 0:00:10]} 26. Rxe8+ {[%emt 0:00:06]} Kf7 {[%emt 0:00:03]} 27. Rb8 {[%emt 0:00:21]} Kxe7 {[%emt 0:01:05]} 28. Rf4 {[%emt 0:00:12]} 1-0

[Event "44th Chess Olympiad Open 2022"]
[Site "Chennai"]
[Date "2022.08.09"]
[Round "11.54"]
[White "El Jawich, Amro"]
[Black "Teixeira, Gil"]
[Result "1-0"]
[ECO "C00"]
[WhiteElo "2314"]
[BlackElo "1741"]
[Annotator "RC"]
[PlyCount "53"]
[EventDate "2022.07.29"]
[EventType "team-tourn"]
[EventCountry "IND"]
[SourceTitle "playchess.com"]
[Source "ChessBase"]
[SourceQuality "1"]
[WhiteTeam "Lebanon"]
[BlackTeam "CPV"]
[WhiteTeamCountry "LBN"]
[TimeControl "40/5400+30:1800+30"]

1. e4 {[%emt 0:00:06]} e6 {[%emt 0:02:38]} 2. Qe2 {[%emt 0:01:45]} d6 {[%emt 0:00:44]} 3. d4 {[%emt 0:01:26]} e5 {[%emt 0:02:05]} 4. Nf3 {[%emt 0:04:32]} Nd7 {[%emt 0:01:23]} 5. Nc3 {[%emt 0:00:20]} Ngf6 {[%emt 0:00:25]} 6. Bg5 {[%emt 0:04:31]} Be7 {[%emt 0:03:02]} 7. O-O-O {[%emt 0:01:19]} exd4 {[%emt 0:04:46]} 8. Nxd4 {[%emt 0:00:06]} O-O {[%emt 0:00:58]} 9. Nf5 {[%emt 0:04:54]} Qe8 {[%emt 0:01:23]} 10. Qd2 {[%emt 0:08:42]} Bd8 {[%emt 0:01:55]} 11. Bh6 {[%emt 0:07:48]} gxh6 {[%emt 0:05:39]} 12. Qxh6 {[%emt 0:00:41]} Nh5 {[%emt 0:00:09]} 13. Qxh5 {[%emt 0:00:42]} Qe6 {[%emt 0:00:16]} 14. Rd3 {[%emt 0:05:42]} Kh8 {[%emt 0:00:23]} 15. Rg3 {[%emt 0:01:09]} Rg8 {[%emt 0:00:18]} 16. Qxh7+ {[%emt 0:25:38]} Kxh7 {[%emt 0:04:51]} 17. Rh3+ {[%emt 0:00:12]} Kg6 {[%emt 0:00:05]} 18. Rh6+ {[%emt 0:00:08]} Kg5 {[%emt 0:01:14]} 19. h4+ {[%emt 0:01:03]} Kf4 {[%emt 0:00:24]} 20. g3+ {[%emt 0:00:14]} Rxg3 {[%emt 0:08:55]} 21. fxg3+ {[%emt 0:02:06]} Ke5 {[%emt 0:02:58]} 22. Rxe6+ {[%emt 0:00:23]} fxe6 {[%emt 0:02:27]} 23. Ne3 {[%emt 0:00:37]} Nf6 {[%emt 0:00:37]} 24. Bg2 {[%emt 0:00:50]} Kd4 {[%emt 0:01:16]} 25. Kd2 {[%emt 0:01:32]} e5 {[%emt 0:01:06]} 26. b4 {[%emt 0:00:57]} Nxe4+ {[%emt 0:01:14]} 27. Nxe4 {[%emt 0:00:35]} 1-0